bitfinex/quotes_ETHUSD_20241030
["timestamp","ask_amount","ask_price","bid_price","bid_amount"]
[1730296178409,0.828,2690.0,2689.4,0.4216875]
[1730296178713,0.828,2690.0,2689.5,3.71816]
[1730296179071,0.828,2690.0,2689.4,0.4216875]
[1730296179474,3.71782,2689.8,2689.2,4.145445]
[1730296179912,3.71812,2689.6,2689.2,0.426885]
[1730296180208,3.71831,2689.4,2688.9,0.0715]
[1730296180384,3.71774,2689.8,2688.6,0.0715]
[1730296180711,4.5054,2689.4,2688.8,3.71911]
[1730296180889,4.5054,2689.4,2688.8,4.470089]
[1730296181087,3.71846,2689.3,2688.8,0.750979]
[1730296181289,3.71815,2689.6,2688.9,3.71889]
[1730296181503,3.71815,2689.6,2689.0,3.71878]
[1730296181704,3.71826,2689.5,2689.0,0.55]
[1730296181887,3.71823,2689.5,2689.0,1.0519869]
[1730296182087,3.71847,2689.3,2688.8,0.750979]
[1730296182312,0.8189,2689.7,2688.5,10.87348983]
[1730296182313,0.8189,2689.7,2688.5,4.15400983]
[1730296182623,7.4368,2689.4,2688.7,3.71918]
[1730296182789,3.71847,2689.3,2688.7,3.71918]
[1730296183199,3.71859,2689.2,2688.6,3.7194]
[1730296183381,3.71859,2689.2,2688.7,0.82462098]
[1730296183915,3.71859,2689.2,2688.7,4.54386098]
[1730296184220,3.71852,2689.3,2688.7,0.82462098]
[1730296184387,0.8189,2689.7,2688.7,0.82462098]
[1730296184576,3.71802,2689.6,2688.8,4.26905]
[1730296184776,3.71837,2689.4,2688.9,0.8812911]
[1730296185010,3.71851,2689.3,2688.9,0.8812911]
[1730296185220,3.71837,2689.4,2688.9,0.8812911]
[1730296185397,3.71802,2689.6,2688.9,4.6001611]
[1730296185600,3.71841,2689.4,2688.9,0.8812911]
[1730296185836,3.71826,2689.5,2688.9,4.6001911]
[1730296186017,3.71826,2689.5,2689.0,0.51501911]
[1730296186221,0.798,2690.2,2689.1,4.70400983]
[1730296186401,0.798,2690.2,2689.3,0.55]
[1730296186402,3.71756,2690.0,2689.3,0.55]
[1730296186603,3.71758,2690.0,2689.5,3.71807]
[1730296186818,3.71755,2690.0,2689.5,3.71807]
[1730296187040,4.51528,2690.2,2689.3,0.9228]
[1730296187250,0.798,2690.2,2689.5,0.55]
[1730296187460,0.798,2690.2,2689.8,3.71768]
[1730296188111,0.1297981,2690.3,2689.8,0.55]
[1730296188302,0.1297981,2690.3,2690.1,3.71726]
[1730296188503,0.1297981,2690.3,2690.1,4.088986]
[1730296189003,0.1297981,2690.3,2690.1,0.371726]
[1730296189469,0.1297981,2690.3,2690.1,4.088976]
[1730296189741,0.1297981,2690.3,2690.1,4.160556]
[1730296189933,0.1297981,2690.3,2690.1,4.088966]
[1730296190138,0.1297981,2690.3,2690.2,0.4088966]
[1730296191446,0.1297981,2690.3,2688.4,0.16619541]
[1730296191447,0.7557,2689.8,2688.4,0.16619541]
[1730296191654,0.7557,2689.8,2688.7,3.71924]
[1730296191949,3.71834,2689.4,2688.7,3.71924]
[1730296192122,3.71798,2689.7,2688.8,3.71903]
[1730296192447,3.71809,2689.6,2688.9,0.371903]
[1730296192621,0.7557,2689.8,2689.0,3.71878]
[1730296192821,3.7181,2689.6,2689.0,3.71878]
[1730296193027,3.71831,2689.4,2688.9,0.55]
[1730296193270,3.71831,2689.4,2688.9,0.976905]
[1730296193788,3.71887,2689.0,2688.4,3.79108]
[1730296194286,3.719,2688.9,2688.3,3.71973]
[1730296194992,3.71915,2688.8,2688.1,3.79151]
[1730296195151,3.71948,2688.6,2688.2,0.379151]
[1730296195357,3.71948,2688.6,2688.0,3.72015]
[1730296195585,3.71948,2688.6,2688.0,3.7202]
[1730296196013,3.71948,2688.6,2687.9,3.72028]
[1730296196187,3.71948,2688.6,2688.1,3.72002]
[1730296196372,3.71941,2688.6,2688.2,0.372002]
[1730296196572,3.7192,2688.8,2688.2,4.091952]
[1730296196874,3.71941,2688.6,2688.2,0.372002]
[1730296197286,3.71961,2688.5,2688.2,0.372002]
[1730296197485,4.15400983,2689.0,2687.8,3.7205]
[1730296197685,3.71962,2688.5,2687.9,3.72037]
[1730296197887,3.72016,2688.1,2687.6,3.72069]
[1730296198199,4.53239,2688.3,2687.7,3.72057]
[1730296198402,0.8125,2688.3,2687.8,0.513125]
[1730296198617,0.8125,2688.3,2687.7,3.72057]
[1730296198618,3.71997,2688.2,2687.7,3.72057]
[1730296198770,7.44002,2688.2,2687.7,3.72057]
[1730296199082,3.71997,2688.2,2687.7,3.72057]
[1730296199497,3.72021,2688.1,2687.5,3.72088]
[1730296199706,3.72021,2688.1,2687.5,3.72085]
[1730296199890,3.72021,2688.1,2687.4,0.0715]
[1730296199891,3.71976,2688.4,2687.8,3.72044]
[1730296200093,3.71989,2688.3,2687.8,3.72044]
[1730296200291,3.72004,2688.2,2687.4,0.0715]
[1730296200491,3.71943,2688.6,2687.4,0.0715]
[1730296200714,3.72014,2688.1,2687.0,0.0715]
[1730296200945,3.71991,2688.3,2687.7,3.72061]
[1730296201146,3.71991,2688.3,2687.8,3.72041]
[1730296201738,3.71991,2688.3,2687.6,0.0715]
[1730296201739,0.77,2688.5,2687.6,0.0715]
[1730296201945,0.77,2688.5,2688.0,3.72011]
[1730296202301,0.77,2688.5,2688.1,3.72008]
[1730296202504,0.77,2688.5,2687.6,3.79225]
[1730296202505,3.71979,2688.4,2687.6,3.79225]
[1730296202699,3.72018,2688.1,2687.6,0.0715]
[1730296202924,0.77,2688.5,2687.5,4.2709]
[1730296202925,3.72032,2688.0,2687.5,4.2709]
[1730296203137,7.43985,2688.3,2687.7,3.72055]
[1730296203433,3.71975,2688.4,2687.9,3.72035]
[1730296203650,4.48964,2688.5,2687.8,3.72051]
[1730296203812,3.71968,2688.4,2687.8,3.72051]
[1730296204011,4.48964,2688.5,2687.9,3.72037]
[1730296204258,4.48964,2688.5,2688.0,3.7202]
[1730296204663,3.71968,2688.4,2687.6,3.72077]
[1730296204965,4.168644,2688.4,2687.8,7.44076]
[1730296205122,3.71968,2688.4,2687.9,3.72035]
[1730296205560,3.71968,2688.4,2687.8,3.72037]
[1730296205723,3.71968,2688.4,2687.9,3.72027]
[1730296205920,3.71968,2688.4,2687.8,3.72051]
[1730296206141,4.48957,2688.5,2687.9,3.72037]
[1730296206320,3.71928,2688.7,2688.1,3.72008]
[1730296206526,0.8025,2688.8,2688.0,3.72023]
[1730296206758,4.52174,2688.8,2688.1,3.72001]
[1730296207076,4.52174,2688.8,2688.3,3.71969]
[1730296207077,0.8025,2688.8,2688.3,3.71969]
[1730296207253,3.71935,2688.7,2688.2,3.71989]
[1730296207425,3.71935,2688.7,2688.1,4.08221]
[1730296207426,3.71941,2688.6,2688.1,4.08221]
[1730296207625,4.52165,2688.8,2688.3,3.71976]
[1730296207837,0.8025,2688.8,2688.4,3.71964]
[1730296208058,0.7915,2689.1,2688.4,0.55]
[1730296208361,3.71893,2689.0,2688.5,3.71954]
[1730296208567,3.71893,2689.0,2688.5,8.237946]
[1730296208869,0.7915,2689.7,2689.0,3.71875]
[1730296209075,0.7915,2689.7,2688.5,4.589896]
[1730296209076,0.7915,2689.7,2689.1,4.090515]
[1730296209361,3.71828,2689.5,2689.0,3.71874]
[1730296209526,3.7183,2689.4,2689.0,3.71874]
[1730296209726,3.71811,2689.6,2689.0,7.43751]
[1730296209959,3.71811,2689.6,2689.0,4.462491]
[1730296210261,3.71823,2689.5,2689.0,4.462491]
[1730296210445,3.71836,2689.4,2689.0,0.743751]
[1730296210653,3.71809,2689.6,2688.7,3.71926]
[1730296210949,3.71809,2689.6,2689.2,3.71856]
[1730296211153,3.71809,2689.6,2689.1,3.71862]
[1730296211665,4.50943,2689.7,2689.2,3.71856]
[1730296211825,0.7915,2689.7,2689.3,3.71841]
[1730296212463,4.50946,2689.7,2689.2,3.71856]
[1730296212681,3.7177,2689.9,2689.4,3.7182]
[1730296212965,3.71771,2689.9,2689.5,3.71815]
[1730296213451,3.7177,2689.9,2689.3,0.4090422]
[1730296213661,3.71788,2689.8,2689.3,3.71836]
[1730296214153,3.7177,2689.9,2689.4,3.71822]
[1730296214331,4.52528,2690.0,2689.5,3.71812]
[1730296214743,4.52528,2690.0,2689.4,3.71822]
[1730296214943,4.52528,2690.0,2689.4,4.090022]
[1730296215239,0.8078,2690.0,2689.4,0.371822]
[1730296215445,0.8078,2690.0,2689.7,3.71782]
[1730296216273,0.9010981,2690.3,2689.9,3.71761]
[1730296216473,0.9010981,2690.3,2690.0,3.71744]
[1730296216630,0.9010981,2690.3,2689.8,3.71772]
[1730296217058,0.9010981,2690.3,2689.8,7.43538]
[1730296217236,0.9010981,2690.3,2689.5,3.71808]
[1730296217237,1.36289991,2690.3,2689.5,3.71808]
[1730296217437,3.71727,2690.2,2689.6,3.71799]
[1730296217635,1.36289991,2690.3,2689.6,3.71799]
[1730296217954,0.9010981,2690.3,2689.8,3.71762]
[1730296218267,0.9010981,2690.3,2689.9,3.71759]
[1730296218633,0.9010981,2690.3,2689.8,3.71762]
[1730296218971,0.1297981,2690.3,2690.0,3.71745]
[1730296219534,0.1297981,2690.3,2690.0,3.71738]
[1730296219878,0.1297981,2690.3,2690.1,3.71732]
[1730296220240,0.1297981,2690.3,2690.2,3.71719]
[1730296220775,0.1297981,2690.3,2690.1,3.71732]
[1730296221189,0.1297981,2690.3,2690.1,3.71726]
[1730296221391,0.1297981,2690.3,2690.2,3.71719]
[1730296221546,0.1297981,2690.3,2690.2,11.49269983]
[1730296221744,0.1297981,2690.3,2690.2,13.01369581]
[1730296222184,0.1297981,2690.3,2690.2,8.85968598]
[1730296223668,8.1e-06,2690.3,2690.2,8.85968598]
[1730296225386,8.1e-06,2690.3,2690.2,8.86968598]
[1730296226262,1.0,2691.8,2691.6,3.71518]
[1730296226501,1.0,2691.8,2691.4,3.7154]
[1730296226918,1.0,2691.8,2691.5,3.71537]
[1730296227072,4.71506,2691.8,2691.2,3.0]
[1730296227262,1.0,2691.8,2691.2,6.71579]
[1730296227469,1.0,2691.8,2691.2,7.758955]
[1730296228097,1.0,2691.8,2691.2,4.043165]
[1730296228273,1.0,2691.8,2690.8,6.71631]
[1730296228475,4.715,2691.8,2691.2,3.7158]
[1730296228685,3.71516,2691.7,2691.0,3.71604]
[1730296229019,3.71526,2691.6,2691.0,3.71604]
[1730296229171,0.7507,2691.3,2691.0,0.743233]
[1730296229367,0.7507,2691.3,2690.2,1.52099598]
[1730296229368,0.7507,2690.9,2690.2,1.52099598]
[1730296229588,0.7507,2690.9,2689.9,3.71754]
[1730296229589,3.71664,2690.6,2689.9,3.71754]
[1730296229793,3.71645,2690.8,2690.0,0.371754]
[1730296229997,4.46702,2690.9,2690.1,3.71733]
[1730296230198,8.18335,2690.9,2690.2,3.71718]
[1730296230381,0.7507,2690.9,2690.0,4.089214]
[1730296230698,3.71643,2690.8,2690.1,3.4089214]
[1730296230927,0.7507,2690.9,2690.2,3.71719]
[1730296231132,0.7507,2690.9,2690.1,3.4089214]
[1730296231434,0.7507,2690.9,2689.6,0.0815]
[1730296231435,0.7507,2690.9,2690.2,0.34089214]
[1730296231608,0.7507,2690.9,2690.6,3.71661]
[1730296231805,0.8146,2691.7,2690.3,0.55]
[1730296232014,1.0,2691.8,2690.3,0.55]
[1730296232015,0.8146,2691.5,2690.3,0.55]
[1730296232246,4.53057,2691.1,2690.5,3.71671]
[1730296232529,0.803,2690.7,2690.1,3.71724]
[1730296232731,3.71666,2690.6,2690.1,1.050626]
[1730296232893,0.803,2690.7,2689.6,0.0715]
[1730296233094,0.803,2690.7,2689.9,3.71757]
[1730296233436,4.15400983,2691.0,2689.3,0.0715]
[1730296233437,0.803,2690.9,2689.3,0.0715]
[1730296233594,0.803,2690.1,2689.7,3.71777]
[1730296233791,0.803,2690.1,2689.9,3.71754]
[1730296233994,0.803,2690.1,2690.0,0.371754]
[1730296234196,0.803,2690.5,2690.3,3.71697]
[1730296234425,0.803,2690.5,2690.4,3.71691]
[1730296234660,0.803,2690.5,2690.2,3.71716]
[1730296234661,0.8097,2691.1,2690.7,3.71646]
[1730296234999,0.8097,2691.1,2690.5,3.71671]
[1730296235200,0.8097,2691.1,2690.7,3.71649]
[1730296235505,0.8097,2691.1,2690.9,7.43228]
[1730296235737,0.8097,2691.1,2691.0,3.71609]
[1730296235947,0.8287,2691.5,2690.8,0.55]
[1730296236101,0.8287,2691.5,2691.1,3.71585]
[1730296236426,0.8287,2691.5,2691.2,3.71571]
[1730296236632,0.8287,2691.5,2691.1,3.71585]
[1730296236834,0.8287,2691.5,2691.1,4.459052]
[1730296237347,0.8287,2691.5,2691.1,0.743202]
[1730296238034,0.8287,2691.5,2691.2,3.71578]
[1730296238621,1.8101,2691.8,2691.5,3.71532]
[1730296238823,1.8101,2691.8,2691.5,3.71537]
[1730296239000,1.8101,2691.8,2691.6,3.71525]
[1730296239776,1.8101,2691.8,2691.7,3.71512]
[1730296240066,1.0,2691.8,2691.7,3.71512]
[1730296240364,1.0,2691.8,2691.7,7.26512]
[1730296241146,1.0,2691.8,2691.7,11.41912983]
[1730296241326,1.0,2691.8,2691.7,11.49062983]
[1730296241653,0.7846,2692.9,2692.7,3.71371]
[1730296241870,0.7846,2692.9,2692.7,3.7137]
[1730296242155,0.01,2692.9,2692.6,3.71379]
[1730296242364,0.01,2692.9,2692.7,3.71369]
[1730296242529,0.01,2692.9,2692.7,3.71364]
[1730296242732,0.01,2692.9,2692.8,3.7136]
[1730296243032,0.01,2692.9,2692.7,3.71364]
[1730296243227,0.01,2692.9,2692.7,4.456399]
[1730296243434,0.01,2692.9,2692.7,7.4273]
[1730296243632,0.01,2692.9,2692.7,3.71364]
[1730296243929,0.01,2692.9,2692.6,0.55]
[1730296244247,0.01,2692.9,2692.7,3.71369]
[1730296244446,0.01,2692.9,2692.8,3.7136]
[1730296244961,0.01,2692.9,2692.8,4.456326]
[1730296245125,0.01,2692.9,2692.8,0.742726]
[1730296245325,0.01,2692.9,2692.6,4.26387]
[1730296245752,0.01,2692.9,2692.6,0.55]
[1730296246042,0.01,2692.9,2692.6,3.71376]
[1730296246172,0.01,2692.9,2692.3,0.55]
[1730296246374,0.7784,2692.8,2692.4,3.71406]
[1730296246578,0.01,2692.9,2692.3,0.426431]
[1730296246791,0.01,2692.9,2692.0,0.0715]
[1730296246792,0.01,2692.9,2692.6,3.71376]
[1730296247014,0.01,2692.9,2692.8,3.7136]
[1730296247706,0.01,2692.9,2692.8,4.2636]
[1730296249196,0.01,2692.9,2692.8,7.2636]
[1730296250808,0.01,2692.9,2692.8,6.7136]
[1730296250964,0.01,2692.9,2692.8,3.7136]
[1730296251163,0.01,2692.9,2692.8,4.08496]
[1730296251810,0.01,2692.9,2692.8,8.23896983]
[1730296251972,0.01,2692.9,2692.8,4.08496]
[1730296252305,0.01,2692.9,2692.8,7.63496]
[1730296252665,0.01,2692.9,2692.8,11.78896983]
[1730296254089,0.01,2692.9,2692.8,11.87046983]
[1730296254599,0.1297981,2693.0,2692.9,7.34496]
[1730296254813,4.9e-07,2693.0,2692.9,9.27572598]
[1730296255171,0.8073,2694.9,2694.4,3.71139]
[1730296255512,0.8073,2694.9,2693.9,3.71209]
[1730296255513,0.8073,2694.9,2694.3,3.0]
[1730296255695,0.8073,2694.9,2694.6,3.71108]
[1730296256059,0.999,2695.0,2694.6,3.71108]
[1730296256268,0.999,2695.0,2694.7,3.71094]
[1730296256669,0.999,2695.0,2694.8,3.71083]
[1730296256862,0.999,2695.0,2694.9,3.71071]
[1730296257891,0.999,2695.0,2694.9,4.26071]
[1730296258965,0.999,2695.0,2694.9,7.34221]
[1730296259297,0.999,2695.0,2694.9,8.86290998]
[1730296260012,0.999,2695.0,2694.9,8.87290998]
[1730296260300,0.999,2695.0,2694.9,8.86290998]
[1730296260504,1e-05,2695.0,2694.9,8.87290998]
[1730296260863,1e-05,2695.0,2694.9,13.02691981]
[1730296261217,1e-05,2695.0,2694.9,8.87290998]
[1730296261573,0.1297981,2695.7,2695.6,3.78124]
[1730296261772,0.1297981,2695.7,2695.6,12.23536183]
[1730296262011,0.1297981,2695.7,2695.6,11.68536183]
[1730296262164,0.1297981,2695.7,2695.6,12.24536183]
[1730296263327,0.1297981,2695.7,2695.6,12.23536183]
[1730296263525,0.03275574,2695.7,2695.6,12.76976692]
[1730296263684,0.03275574,2695.7,2695.6,8.61575709]
[1730296264016,0.03275574,2695.7,2695.6,8.081352]
[1730296264871,5.74e-06,2695.7,2695.6,8.091352]
[1730296265411,5.74e-06,2695.7,2695.6,8.14700418]
[1730296265785,5.74e-06,2695.7,2695.6,8.15700418]
[1730296266194,5.74e-06,2695.7,2695.6,8.13700418]
[1730296266504,5.74e-06,2695.7,2695.6,4.51550418]
[1730296266704,5.74e-06,2695.7,2695.6,3.76539218]
[1730296268019,5.74e-06,2695.7,2695.6,0.05565218]
[1730296268195,5.74e-06,2695.7,2695.6,3.76539218]
[1730296268374,5.74e-06,2695.7,2695.6,0.05565218]
[1730296268574,5.74e-06,2695.7,2695.6,3.76539218]
[1730296268828,5.74e-06,2695.7,2695.6,0.05565218]
[1730296269024,0.79310574,2695.7,2694.7,4.15400983]
[1730296269177,0.79310574,2695.7,2695.5,3.70976]
[1730296269523,0.79310574,2695.7,2695.4,3.70992]
[1730296269669,0.79310574,2695.7,2695.5,3.7098]
[1730296269871,5.74e-06,2695.7,2695.6,3.70974]
[1730296270120,5.74e-06,2695.7,2695.6,4.451701]
[1730296270272,5.74e-06,2695.7,2695.5,3.7098]
[1730296270474,5.74e-06,2695.7,2695.5,3.70978]
[1730296270668,0.8234,2695.6,2695.5,3.70981]
[1730296271150,0.8234,2695.6,2695.0,3.71053]
[1730296271319,0.8234,2695.5,2694.7,3.7109]
[1730296271474,0.8234,2695.5,2695.1,3.71043]
[1730296271672,4.53329,2695.5,2694.9,3.71059]
[1730296271908,4.53329,2695.5,2694.7,3.71089]
[1730296271909,0.8234,2695.3,2694.7,3.71089]
[1730296272088,0.7815,2695.5,2693.9,4.22550983]
[1730296272289,0.7815,2695.5,2694.6,3.71107]
[1730296272290,0.7815,2695.3,2694.6,3.71107]
[1730296272478,1.231663,2695.3,2694.7,3.71098]
[1730296272825,0.7815,2695.1,2694.2,4.15400983]
[1730296273000,5.74e-06,2695.7,2695.3,3.71005]
[1730296273001,0.8132,2695.6,2695.3,3.71005]
[1730296273373,0.8132,2695.6,2694.5,7.15400983]
[1730296273676,0.8132,2695.6,2695.3,3.71007]
[1730296274215,0.8132,2695.6,2695.5,3.70988]
[1730296274422,5.74e-06,2695.7,2695.6,3.70974]
[1730296276804,5.74e-06,2695.7,2695.6,6.78124]
[1730296277103,5.74e-06,2695.7,2695.6,3.70974]
[1730296279653,5.74e-06,2695.7,2695.6,6.70974]
[1730296279807,5.74e-06,2695.7,2695.6,7.751702]
[1730296280455,5.74e-06,2696.1,2696.0,6.70919]
[1730296280754,5.74e-06,2696.1,2696.0,10.93469983]
[1730296282010,0.8073,2697.6,2697.0,3.70782]
[1730296282352,0.8073,2697.9,2697.0,6.70782]
[1730296282648,0.8073,2697.3,2697.0,4.756546]
[1730296282944,0.1297981,2698.4,2697.0,3.70782]
[1730296282945,0.8073,2697.9,2697.0,3.70782]
[1730296283785,0.02,2698.2,2697.0,3.70782]
[1730296283902,0.8073,2697.2,2697.0,3.70782]
[1730296284347,0.1662243,2698.0,2697.0,3.70782]
[1730296285150,2.47e-06,2697.1,2697.0,6.70782]
[1730296285356,0.1662243,2698.0,2697.9,3.70658]
[1730296289539,0.1662243,2698.0,2697.8,3.70663]
[1730296289862,0.1662243,2698.0,2697.2,0.0715]
[1730296290058,0.1662243,2698.0,2697.9,3.70658]
[1730296290447,0.1662243,2698.0,2697.3,0.42255098]
[1730296290762,0.1662243,2698.0,2697.6,3.70688]
[1730296290964,0.1662243,2698.0,2697.7,3.70678]
[1730296291131,0.8129,2697.9,2697.6,3.70699]
[1730296291520,0.8129,2697.9,2697.5,3.70713]
[1730296291825,0.7735,2697.9,2697.6,3.70698]
[1730296292170,0.1662243,2698.0,2697.9,3.70658]
[1730296292333,0.1662243,2698.0,2697.9,5.23399498]
[1730296294051,0.1662243,2698.0,2697.9,3.70658]
[1730296294252,0.1297981,2698.4,2697.9,3.70658]
[1730296294253,0.1297981,2698.4,2697.9,3.0]
[1730296294471,0.1297981,2698.4,2698.3,3.70603]
[1730296296125,0.1297981,2698.4,2698.3,3.97755126]
[1730296296326,0.1297981,2698.4,2698.3,3.70603]
[1730296296528,0.9050981,2698.4,2698.3,3.70603]
[1730296297238,0.9050981,2698.4,2698.2,3.70615]
[1730296297438,0.9050981,2698.4,2697.9,3.7065]
[1730296297738,0.9050981,2698.4,2698.2,3.70609]
[1730296297939,0.9050981,2698.4,2698.0,3.70634]
[1730296298127,0.9050981,2698.4,2698.2,3.70617]
[1730296298331,0.9050981,2698.4,2698.3,3.70603]
[1730296298643,0.9050981,2698.4,2698.2,3.7061]
[1730296299357,0.9050981,2698.4,2698.3,3.70603]
[1730296300451,0.9050981,2698.4,2698.2,3.7061]
[1730296300764,0.9050981,2698.4,2698.0,4.076984]
[1730296300966,0.9050981,2698.4,2698.2,3.70615]
[1730296301677,0.9050981,2698.4,2698.3,3.76162419]
[1730296301678,0.1297981,2698.4,2698.3,3.76162419]
[1730296302272,0.1297981,2698.4,2698.3,3.70603]
[1730296302432,0.9269981,2698.4,2698.2,3.70609]
[1730296302859,0.9269981,2698.4,2698.1,3.7063]
[1730296303261,0.9269981,2698.4,2697.9,3.70649]
[1730296303467,0.9269981,2698.4,2698.2,3.70608]
[1730296303856,0.9269981,2698.4,2698.3,3.70603]
[1730296304899,0.9269981,2698.4,2698.2,3.70609]
[1730296305196,0.9269981,2698.4,2698.3,3.70603]
[1730296305400,0.9269981,2698.4,2698.2,3.70609]
[1730296305560,0.9269981,2698.4,2698.0,3.70634]
[1730296305957,0.9269981,2698.4,2697.9,3.70658]
[1730296306189,0.9269981,2698.4,2698.2,3.70609]
[1730296306568,0.9269981,2698.4,2698.0,3.70635]
[1730296306859,0.9269981,2698.4,2698.1,3.7062]
[1730296307056,0.9269981,2698.4,2698.2,3.7061]
[1730296307570,0.9269981,2698.4,2697.7,4.15400983]
[1730296307767,0.9269981,2698.4,2698.3,3.70603]
[1730296308398,0.7657,2698.2,2697.7,3.70675]
[1730296308698,4.47188,2698.2,2697.6,7.41382]
[1730296308867,0.7657,2698.2,2697.6,3.7069]
[1730296309193,0.7657,2698.2,2697.0,0.0715]
[1730296309194,0.7657,2698.2,2698.1,3.70631]
[1730296309499,0.7657,2698.2,2698.0,7.4128]
[1730296309704,0.7657,2698.2,2698.0,3.70636]
[1730296309858,0.7657,2698.2,2698.1,3.70631]
[1730296310062,0.1297981,2698.4,2698.1,3.70631]
[1730296310063,0.9035981,2698.4,2698.3,3.70603]
[1730296311158,0.9035981,2698.4,2698.1,3.70623]
[1730296311655,0.9035981,2698.4,2698.2,3.70615]
[1730296311862,0.9035981,2698.4,2698.1,3.70623]
[1730296312089,0.1297981,2698.4,2698.2,3.70617]
[1730296312286,0.1297981,2698.4,2698.3,3.70603]
[1730296313102,0.1297981,2698.4,2697.7,10.93228983]
[1730296313270,0.8162,2698.3,2698.0,3.70635]
[1730296313462,0.8162,2698.3,2698.2,3.70617]
[1730296313661,0.1297981,2698.4,2698.3,3.70603]
[1730296314112,0.1297981,2698.4,2698.3,4.44725]
[1730296316303,0.1297981,2698.4,2698.3,3.70603]
[1730296317319,0.1297981,2698.4,2698.3,3.76162654]
[1730296317824,0.1297981,2698.4,2698.3,3.70603]
[1730296318530,0.9139981,2698.4,2697.4,3.64270533]
[1730296318677,0.7842,2698.2,2697.4,0.36427053]
[1730296318883,0.7842,2698.2,2697.1,0.7753]
[1730296319185,0.7842,2698.1,2697.4,3.7072]
[1730296319391,0.7942,2698.1,2697.4,7.41437]
[1730296319587,0.450046,2698.0,2697.5,3.70706]
[1730296319976,4.5006,2698.1,2697.4,7.41436]
[1730296320173,0.7697,2698.0,2697.2,3.70749]
[1730296320373,0.1297981,2698.4,2696.8,0.27315272]
[1730296320374,0.01,2697.4,2696.8,0.27315272]
[1730296320590,3.7062,2698.2,2696.2,3.70882]
[1730296320591,4.47768,2696.9,2696.2,3.70882]
[1730296320820,0.7697,2696.9,2695.9,0.823]
[1730296321025,0.7697,2696.9,2696.3,3.70875]
[1730296321202,0.7697,2696.9,2696.3,7.41746]
[1730296321468,0.7697,2696.9,2696.5,3.70844]
[1730296321855,0.7697,2696.9,2696.3,4.450516]
[1730296322058,0.7697,2696.9,2696.2,3.70885]
[1730296322243,0.7697,2696.9,2696.3,3.70875]
[1730296322441,4.47766,2696.9,2696.2,3.70884]
[1730296322785,4.47773,2696.9,2696.1,3.70904]
[1730296322952,1.306238,2696.9,2696.2,3.7089]
[1730296323153,1.306238,2696.9,2695.7,3.70956]
[1730296323154,0.7697,2696.9,2696.7,3.70822]
[1730296323468,0.8141,2697.5,2696.8,3.70809]
[1730296323666,3.70741,2697.3,2696.6,3.70828]
[1730296323977,3.70748,2697.3,2696.6,3.70828]
[1730296324174,3.70748,2697.3,2696.2,3.8226]
[1730296324175,0.87860108,2697.2,2697.0,3.70779]
[1730296324338,0.87860108,2697.2,2696.8,3.70807]
[1730296324536,0.87860108,2697.2,2696.6,3.70836]
[1730296324738,0.87860108,2697.2,2696.7,3.70816]
[1730296325041,0.87860108,2697.2,2696.9,3.70788]
[1730296325261,0.87860108,2697.2,2697.1,3.70768]
[1730296325457,0.87860108,2697.2,2696.9,3.70785]
[1730296325801,0.87860108,2697.2,2696.7,1.01575519]
[1730296325802,0.87860108,2697.2,2697.1,3.70768]
[1730296325953,0.06450108,2697.2,2697.1,3.70768]
[1730296326995,0.06450108,2697.2,2697.0,3.64326752]
[1730296327500,1.37955925,2697.5,2697.1,3.70764]
[1730296328472,0.06448957,2697.4,2697.1,3.70767]
[1730296329201,0.06448957,2697.4,2697.0,3.70773]
[1730296329689,0.06448957,2697.4,2697.1,3.70759]
[1730296329880,0.06448957,2697.4,2697.0,3.70773]
[1730296330076,0.06448957,2697.4,2697.1,3.70768]
[1730296330305,0.06448957,2697.4,2697.0,3.70773]
[1730296330450,0.06448957,2697.4,2697.2,3.7075]
[1730296330652,0.06448957,2697.4,2696.4,4.95420983]
[1730296330891,3.70775,2697.1,2696.5,3.70851]
[1730296331058,0.83,2697.0,2696.4,3.70863]
[1730296331268,3.70804,2696.9,2696.2,7.41768]
[1730296331451,3.70804,2696.9,2696.0,3.70908]
[1730296331452,0.83,2696.6,2696.0,3.70908]
[1730296331656,0.83,2696.6,2696.5,3.70851]
[1730296331860,0.83,2696.6,2696.0,3.70906]
[1730296332058,3.70852,2696.5,2696.0,3.70906]
[1730296332253,3.70852,2696.5,2695.8,3.70938]
[1730296332497,0.7855,2696.4,2695.9,3.70933]
[1730296332717,0.7855,2696.4,2695.4,3.71]
[1730296332718,0.7855,2696.2,2695.4,3.71]
[1730296332899,0.7855,2696.2,2695.0,0.7748]
[1730296332900,0.7855,2696.2,2695.8,3.70933]
[1730296333206,0.7955,2696.2,2695.0,0.7748]
[1730296333524,0.7955,2696.2,2694.9,4.15400983]
[1730296333525,0.7506,2696.0,2695.1,0.49288098]
[1730296333814,0.7506,2695.8,2695.2,3.71025]
[1730296334105,3.70962,2695.7,2695.1,3.71038]
[1730296334311,4.52658,2695.7,2695.0,3.71049]
[1730296334516,0.81696,2695.7,2695.2,3.71018]
[1730296334872,0.7506,2695.8,2695.4,3.70995]
[1730296335105,0.7506,2695.8,2694.8,3.71085]
[1730296335305,0.7506,2695.8,2695.4,3.70991]
[1730296335685,0.7506,2695.8,2695.7,3.70961]
[1730296336084,0.7506,2695.8,2695.6,3.70973]
[1730296336283,0.7506,2695.8,2695.6,3.70966]
[1730296337107,0.7506,2695.8,2695.4,0.370991]
[1730296337309,0.7506,2695.8,2695.6,3.70962]
[1730296337472,0.7506,2695.8,2695.0,4.15400983]
[1730296337670,0.7506,2695.8,2695.0,7.15400983]
[1730296337976,0.7506,2695.8,2695.7,3.70961]
[1730296338172,0.7506,2695.8,2695.0,7.15400983]
[1730296338412,4.4789,2696.5,2695.8,3.7094]